bitfinex/quotes_ETHUSD_20250808
["timestamp","ask_amount","ask_price","bid_price","bid_amount"]
[1754674888924,2.60401085,4032.3,4031.8,4.235]
[1754674889277,1.8045,4032.2,4031.8,4.111]
[1754674889441,2.60422024,4031.9,4031.8,4.111]
[1754674889644,2.48028176,4031.8,4031.7,0.001]
[1754674889843,2.48065092,4031.2,4030.2,0.125]
[1754674890043,2.48065092,4031.2,4030.4,4.11]
[1754674890044,2.60465092,4031.2,4030.4,4.11]
[1754674890366,8.46767292,4031.2,4030.2,0.001]
[1754674890663,3.03089709,4030.8,4030.2,0.001]
[1754674890867,3.15489709,4030.8,4030.2,0.001]
[1754674891033,4.95939709,4030.8,4030.2,0.001]
[1754674892667,0.124,4030.8,4030.6,4.111]
[1754674892834,0.4669,4031.9,4030.8,2.48089709]
[1754674893036,0.26040108,4032.3,4031.0,2.48073234]
[1754674893037,0.124,4031.6,4031.0,2.48073234]
[1754674893257,0.124,4031.6,4031.1,0.124]
[1754674893562,0.124,4031.6,4031.2,4.11]
[1754674894737,2.48089709,4030.8,4030.7,0.001]
[1754674894932,6.03089709,4030.8,4030.7,0.001]
[1754674902257,7.93480909,4030.8,4030.7,1e-08]
[1754674902470,12.04480909,4030.8,4030.7,1e-08]
[1754674903080,7.93480909,4030.8,4030.7,1e-08]
[1754674903290,12.04480909,4030.8,4030.7,1e-08]
[1754674903471,0.55,4030.5,4028.3,1.7897]
[1754674903801,2.48206704,4029.0,4028.0,0.4551]
[1754674903972,2.48206704,4029.0,4028.1,0.4551]
[1754674904169,2.48206848,4028.9,4028.1,0.4551]
[1754674904363,2.48201892,4029.0,4028.1,4.5651]
[1754674904575,0.55,4029.6,4028.1,5.40334323]
[1754674904773,0.124,4028.7,4028.1,5.52734323]
[1754674904989,0.124,4028.7,4028.1,1.41734323]
[1754674905196,2.48235795,4028.5,4027.9,1.3346]
[1754674905515,2.48246061,4028.3,4027.3,2.48299983]
[1754674905659,3.0,4029.4,4026.7,13.1570034]
[1754674905660,2.48256001,4028.1,4026.7,0.4551]
[1754674905860,0.124,4027.3,4026.7,0.4551]
[1754674906277,2.48311481,4027.2,4026.3,1.3346]
[1754674906479,0.124,4027.0,4026.3,1.3346]
[1754674906684,2.60724067,4027.0,4026.4,0.4551]
[1754674906886,0.124,4027.0,4026.4,1.30704544]
[1754674907289,2.4833094,4026.9,4026.4,5.42504544]
[1754674907485,2.60725169,4027.0,4026.5,1.7897]
[1754674907671,0.124,4027.0,4026.6,0.4551]
[1754674908033,0.124,4027.0,4026.6,1.3346]
[1754674908295,3.0,4028.5,4026.7,2.54415454]
[1754674908460,0.124,4027.5,4026.8,0.4551]
[1754674908661,0.55,4028.3,4026.9,4.114]
[1754674908662,2.48300051,4027.4,4026.9,4.114]
[1754674908863,2.48323378,4027.1,4026.4,4.113]
[1754674909062,0.124,4027.2,4026.5,0.124]
[1754674909383,0.124,4027.2,4026.6,4.112]
[1754674909582,2.4832214,4027.1,4026.5,4.235]
[1754674909764,0.124,4027.2,4026.5,4.235]
[1754674910091,2.48291344,4027.6,4026.5,6.3242]
[1754674910295,0.55,4028.2,4026.5,6.3242]
[1754674910296,0.124,4027.1,4026.5,6.3242]
[1754674910461,0.124,4027.1,4026.5,8.80773234]
[1754674910858,0.124,4027.1,4026.5,8.80774556]
[1754674911393,0.124,4027.1,4026.6,0.124]
[1754674911690,0.124,4027.1,4026.7,0.4551]
[1754674911913,0.124,4027.1,4026.6,0.124]
[1754674912110,0.124,4027.1,4026.7,4.111]
[1754674912505,0.124,4027.1,4026.3,0.124]
[1754674912822,0.124,4027.1,4026.1,0.001]
[1754674912823,0.124,4026.5,4026.1,0.001]
[1754674913131,0.124,4026.5,4026.4,4.112]
[1754674913428,0.124,4026.5,4026.3,4.112]
[1754674913586,2.48311232,4027.3,4026.4,4.27330818]
[1754674913781,0.124,4026.9,4026.4,1.7897]
[1754674913986,0.124,4026.9,4026.5,2.93864556]
[1754674914196,0.124,4026.9,4026.5,4.23974556]
[1754674914524,0.124,4026.9,4026.6,4.5432]
[1754674914726,3.0,4027.8,4026.6,4.5432]
[1754674914727,2.93893824,4028.5,4026.7,2.48342315]
[1754674914884,2.48272892,4027.9,4027.0,2.48318393]
[1754674915085,0.4566,4028.5,4027.0,0.4312]
[1754674915285,2.48212867,4028.8,4027.7,2.48274679]
[1754674915586,1.16407887,4028.7,4027.5,4.112]
[1754674915725,2.48208368,4028.9,4028.1,2.48251825]
[1754674915928,2.48206131,4029.0,4027.6,1.7323]
[1754674916139,2.48206131,4029.0,4028.1,2.48251558]
[1754674916140,2.4820503,4029.0,4028.1,2.48251558]
[1754674916346,0.4566,4029.5,4027.7,2.48274859]
[1754674916630,2.48194385,4029.1,4027.4,4.112]
[1754674916934,2.48194385,4029.1,4027.2,2.48307357]
[1754674916935,2.48266792,4028.0,4027.2,6.59507357]
[1754674917242,2.48250918,4028.2,4027.2,4.112]
[1754674917396,2.48256001,4028.1,4027.3,2.48304986]
[1754674917597,2.48250843,4028.2,4027.4,2.48297406]
[1754674917798,2.48263879,4028.0,4027.2,6.59505418]
[1754674917999,0.55,4028.6,4027.2,4.112]
[1754674918200,2.48274527,4027.8,4027.2,4.112]
[1754674918423,2.48268265,4028.0,4027.2,3.112]
[1754674918823,0.30321903,4028.5,4027.2,3.112]
[1754674919023,2.48237099,4028.5,4027.6,2.48282465]
[1754674919298,2.48237099,4028.5,4027.4,2.4829915]
[1754674919299,2.48256513,4028.1,4027.4,6.59497085]
[1754674919499,0.4566,4028.6,4027.4,4.112]
[1754674919700,2.48224573,4028.7,4027.4,4.112]
[1754674919900,2.48225189,4028.6,4027.8,2.48271684]
[1754674920136,2.48225395,4028.6,4027.8,2.48270209]
[1754674920352,4.5686,4029.6,4027.7,1.7323]
[1754674920638,2.48155248,4029.8,4027.9,0.4312]
[1754674920840,2.4818213,4029.3,4028.5,2.48227027]
[1754674921046,0.37240525,4029.7,4028.6,4.112]
[1754674921252,2.48171558,4029.5,4028.6,4.112]
[1754674921403,2.48171558,4029.5,4028.7,2.48219028]
[1754674921745,0.37240525,4029.7,4028.6,4.112]
[1754674921746,2.48177956,4029.4,4028.6,6.59423489]
[1754674921955,2.85398936,4029.7,4028.6,4.112]
[1754674922105,1.018392,4029.9,4028.7,1.7323]
[1754674922444,1.018392,4029.9,4028.8,1.7323]
[1754674922606,1.018392,4029.9,4029.7,2.48155325]
[1754674922801,1.018392,4029.9,4029.4,4.112]
[1754674923229,2.4815821,4029.7,4029.1,4.112]
[1754674923535,2.4815821,4029.7,4028.8,4.112]
[1754674923536,0.59814042,4029.7,4028.8,4.112]
[1754674923754,2.48176696,4029.4,4028.8,4.112]
[1754674923949,2.48192858,4029.2,4028.7,4.111]
[1754674924545,1.018392,4029.9,4028.7,1.7323]
[1754674924750,2.48195181,4029.1,4028.8,0.124]
[1754674925057,1.474992,4029.9,4028.2,6.59348451]
[1754674925058,2.48201946,4029.0,4028.2,6.59348451]
[1754674925206,2.482082,4028.9,4028.5,0.124]
[1754674925406,2.4821762,4028.8,4028.0,4.111]
[1754674925620,0.124,4028.8,4028.2,0.124]
[1754674925923,0.124,4028.8,4028.3,2.48238535]
[1754674926235,0.124,4028.8,4028.2,0.124]
[1754674926608,0.124,4029.1,4028.5,2.60626349]
[1754674926804,2.60598654,4029.1,4028.5,0.124]
[1754674927135,2.60596065,4029.1,4028.5,0.124]
[1754674927431,0.124,4029.1,4028.5,2.60626373]
[1754674927738,0.124,4029.1,4028.5,0.124]
[1754674927739,2.60595658,4029.1,4028.5,0.124]
[1754674927918,0.63277747,4029.1,4028.5,0.124]
[1754674928236,2.48177144,4029.4,4028.2,4.11]
[1754674928441,0.124,4029.1,4028.6,2.48222145]
[1754674928819,0.124,4029.1,4028.5,2.60629357]
[1754674929141,0.124,4029.1,4028.7,2.48217593]
[1754674929321,0.124,4029.7,4029.0,0.124]
[1754674929753,2.48202392,4029.0,4028.2,0.4312]
[1754674929931,2.74262631,4029.0,4028.6,0.124]
[1754674930107,2.74265184,4029.0,4028.0,3.78369892]
[1754674930307,2.86661884,4029.0,4028.4,0.124]
[1754674930581,2.8666335,4029.0,4028.4,0.124]
[1754674931008,0.38460239,4029.0,4028.4,0.124]
[1754674931533,0.28665482,4028.9,4028.4,0.124]
[1754674931706,1.6991,4029.1,4028.0,0.124]
[1754674931907,0.124,4028.5,4027.6,0.001]
[1754674932115,2.48237513,4028.4,4027.7,2.60680587]
[1754674932319,2.60632893,4028.5,4027.7,0.124]
[1754674932530,2.48254304,4028.2,4027.6,0.001]
[1754674932702,0.124,4028.0,4027.6,0.001]
[1754674932906,0.26063289,4028.4,4027.7,2.48275778]
[1754674933138,0.124,4028.3,4027.7,2.48280656]
[1754674933339,0.124,4028.3,4027.6,0.125]
[1754674933340,2.60647057,4028.3,4027.6,0.125]
[1754674933541,0.124,4028.3,4027.8,2.48272357]
[1754674933745,0.124,4028.3,4027.6,0.125]
[1754674934038,2.48242901,4028.4,4028.1,0.124]
[1754674934341,0.96546755,4028.4,4027.8,0.124]
[1754674934553,2.60664437,4028.0,4027.6,0.001]
[1754674934753,2.4827665,4027.8,4027.6,0.001]
[1754674935044,1.6991,4028.3,4027.6,0.001]
[1754674935045,2.60680656,4027.7,4027.6,0.001]
[1754674935238,4.30590656,4027.7,4027.6,0.001]
[1754674935439,4.98476722,4027.7,4027.6,0.001]
[1754674935607,0.80286066,4027.7,4027.6,0.001]
[1754674935808,0.124,4027.7,4027.6,0.001]
[1754674936313,2.60680656,4027.7,4027.6,0.001]
[1754674936507,3.06340656,4027.7,4027.6,0.001]
[1754674936756,4.30590656,4027.7,4027.6,0.001]
[1754674938831,3.0,4028.5,4027.6,0.001]
[1754674938832,1.2425,4028.6,4027.6,0.001]
[1754674939039,0.124,4028.2,4027.6,0.125]
[1754674939213,0.124,4028.2,4027.7,2.48278568]
[1754674939407,0.124,4028.2,4027.9,2.48262778]
[1754674939613,0.124,4028.2,4028.1,2.48256001]
[1754674939813,0.124,4028.2,4027.9,2.48266407]
[1754674940045,0.124,4028.5,4028.0,0.124]
[1754674940245,0.86783619,4028.5,4028.0,2.60661366]
[1754674940412,0.86783619,4028.5,4028.0,0.124]
[1754674940613,3.0,4029.1,4028.0,0.124]
[1754674940614,0.4586,4029.5,4028.0,1.8563]
[1754674940929,0.124,4028.8,4028.5,2.48227732]
[1754674941319,0.124,4028.8,4028.6,2.48223596]
[1754674941520,0.124,4028.8,4028.4,2.48232484]
[1754674941765,0.124,4028.8,4028.0,0.124]
[1754674941979,0.124,4028.8,4027.2,2.48307741]
[1754674941980,0.4566,4028.8,4027.2,2.48307741]
[1754674942136,0.124,4028.8,4028.4,2.48233376]
[1754674942622,0.124,4028.8,4028.3,2.48242301]
[1754674942825,0.124,4028.8,4027.6,1.3021]
[1754674942826,0.4232,4028.8,4027.6,1.3021]
[1754674943027,0.124,4028.4,4028.3,2.48243233]
[1754674943226,0.124,4028.6,4028.3,2.48243233]
[1754674943465,0.124,4028.6,4028.4,2.48235306]
[1754674943879,2.4819709,4029.1,4028.4,2.48236579]
[1754674943880,0.124,4028.8,4028.4,2.48236579]
[1754674944172,0.124,4028.8,4028.2,2.60644785]
[1754674944647,0.124,4028.8,4028.2,2.60407609]
[1754674944830,2.60614757,4028.8,4028.2,0.12162824]
[1754674945033,2.60614798,4028.8,4028.2,0.12162824]
[1754674945357,1.24624016,4028.8,4028.2,2.60411219]
[1754674945604,1.24624016,4028.8,4028.3,2.48243675]
[1754674945769,0.124,4028.8,4028.5,2.48229647]
[1754674946146,0.124,4028.8,4028.4,2.48236754]
[1754674946735,0.124,4028.8,4028.2,2.60406699]
[1754674946963,0.124,4028.8,4028.3,2.48243582]
[1754674947131,0.124,4028.8,4028.5,2.48225254]
[1754674947338,0.124,4028.8,4028.3,2.48237915]
[1754674947548,0.124,4028.8,4028.4,2.4823598]
[1754674947950,0.124,4028.8,4028.5,2.48230876]
[1754674948435,0.124,4028.8,4028.2,0.12162824]
[1754674948636,0.124,4028.8,4028.4,2.48236797]
[1754674948876,0.124,4028.8,4028.2,2.60411931]
[1754674948877,0.124,4028.8,4028.5,2.48230349]
[1754674949079,0.126,4028.8,4028.3,2.48239616]
[1754674949386,0.126,4028.8,4028.4,2.48231998]
[1754674949748,0.126,4028.8,4028.3,2.48238077]
[1754674950092,2.48228101,4028.6,4027.9,2.48267021]
[1754674950390,4.52405646,4028.8,4027.9,0.124]
[1754674950391,0.124,4028.4,4027.9,0.124]
[1754674950749,0.5789,4028.4,4027.9,0.124]
[1754674950950,2.48262164,4028.0,4027.9,0.124]
[1754674951161,0.5789,4028.0,4027.6,0.001]
[1754674951359,0.124,4028.1,4027.7,2.4827606]
[1754674951570,0.124,4028.1,4027.6,0.001]
[1754674951773,0.124,4028.1,4027.6,2.48385302]
[1754674951981,0.124,4028.1,4027.9,2.48267839]
[1754674952163,4.105,4028.7,4027.7,1.7583]
[1754674952499,0.124,4028.5,4027.9,2.60667593]
[1754674952784,0.124,4028.5,4027.9,2.60662802]
[1754674952959,0.124,4028.5,4028.1,2.4825434]
[1754674953161,0.124,4028.5,4028.0,2.48260968]
[1754674953397,2.60636425,4028.5,4027.9,0.124]
[1754674953554,0.124,4028.5,4028.1,2.48251316]
[1754674953756,0.124,4028.5,4027.9,0.124]
[1754674954067,0.124,4028.5,4028.2,2.48249162]
[1754674954278,0.124,4028.5,4028.1,2.48254987]
[1754674954481,0.124,4028.5,4028.0,2.48256593]
[1754674954675,0.124,4028.5,4027.9,0.124]
[1754674954877,0.002,4028.8,4028.2,2.48245807]
[1754674955081,2.48219976,4028.7,4028.1,0.124]
[1754674956588,3.15659245,4028.8,4028.1,2.60650356]
[1754674956788,3.15659245,4028.8,4028.2,2.48249516]
[1754674956993,3.15659245,4028.8,4028.1,2.60653676]
[1754674957573,0.67440737,4028.8,4028.3,2.48239285]
[1754674957790,0.67440737,4028.8,4028.1,2.60653068]
[1754674958008,0.126,4028.8,4028.1,0.124]
[1754674958162,0.002,4028.8,4028.7,2.48219028]
[1754674958363,0.002,4028.8,4028.7,8.34449028]
[1754674958972,0.002,4028.8,4028.7,10.66957005]
[1754674959384,0.002,4028.8,4028.7,4.104]
[1754674959586,0.002,4028.8,4028.7,6.58619028]
[1754674960259,0.002,4028.8,4028.7,8.34449028]
[1754674962172,0.002,4029.3,4029.2,2.48188225]
[1754674962465,0.002,4029.3,4029.2,6.58388225]
[1754674962665,0.002,4029.4,4029.3,2.48182066]
[1754674962865,0.99992327,4029.8,4029.7,2.48157431]
[1754674963088,0.002,4030.4,4029.8,2.48151273]
[1754674963365,1e-08,4029.9,4029.8,4.23981273]
[1754674963576,1e-08,4030.1,4030.0,2.48138957]
[1754674963860,1e-08,4030.4,4030.3,2.48120487]
[1754674964074,1e-08,4030.4,4030.3,19.73250679]
[1754674964286,1e-08,4030.4,4030.3,8.34150487]
[1754674964486,1e-08,4030.4,4030.3,8.34050487]
[1754674964688,1e-08,4030.4,4030.3,9.776309]
[1754674965000,1e-08,4030.4,4030.3,3.917009]
[1754674965165,1e-08,4030.4,4030.3,6.58220487]
[1754674965895,1e-08,4030.4,4030.3,2.48120487]
[1754674966096,1e-08,4030.4,4030.3,6.58220487]
[1754674966462,1e-08,4030.4,4030.3,2.48120487]
[1754674966665,1e-08,4030.4,4030.3,6.58120487]
[1754674966898,1e-08,4030.4,4030.3,2.48120487]
[1754674967099,1e-08,4030.4,4030.3,6.58120487]
[1754674967265,1e-08,4030.4,4030.3,7.48745567]
[1754674968103,1e-08,4030.4,4030.3,7.61145567]
[1754674968627,1e-08,4030.4,4030.3,9.36975567]
[1754674968828,1e-08,4030.4,4030.3,19.51905759]
[1754674969132,1e-08,4030.4,4030.3,17.76075759]
[1754674969428,1e-08,4030.4,4030.3,6.91520487]
[1754674969941,1e-08,4030.4,4030.3,11.01420487]
[1754674970241,1e-08,4030.4,4030.3,12.33140487]
[1754674970534,1e-08,4030.4,4030.3,12.77250487]
[1754674971634,1.3262,4032.1,4030.3,10.1673]
[1754674971958,1.3262,4032.1,4031.7,0.124]
[1754674972107,1.3242,4032.0,4031.7,0.124]
[1754674972511,1.3242,4031.9,4031.7,0.124]
[1754674973223,1.3242,4031.8,4031.7,0.124]
[1754674973624,1.7791,4031.8,4031.7,0.124]
[1754674975132,1.95721,4031.8,4031.7,0.124]
[1754674975857,4.43749176,4031.8,4031.7,0.124]
[1754674976054,1.95721,4031.8,4031.7,0.124]
[1754674976259,1.95721,4031.8,4030.7,4.096]
[1754674976260,1.95721,4031.8,4031.5,2.48044024]
[1754674976469,0.002,4032.1,4031.7,0.124]
[1754674976968,0.002,4032.1,4032.0,2.48015873]
[1754674977152,0.002,4032.1,4031.7,2.60432217]
[1754674977330,0.002,4032.1,4031.7,0.124]
[1754674977535,0.4653,4032.1,4031.7,2.60434285]
[1754674977734,1.7769,4032.0,4031.7,0.124]
[1754674977944,2.48050776,4031.5,4030.9,0.124]
[1754674978174,1.7769,4031.9,4030.9,0.124]
[1754674978175,0.124,4031.4,4030.9,0.124]
[1754674978341,2.4808157,4031.0,4030.6,0.124]
[1754674978543,0.124,4031.1,4030.6,0.124]
[1754674978744,1.7769,4031.0,4030.6,0.124]
[1754674978955,1.7769,4031.0,4030.6,2.60500186]
[1754674979156,1.7769,4031.0,4030.6,0.124]
[1754674979362,0.4633,4030.9,4030.6,0.124]
[1754674979956,0.4633,4030.9,4030.6,4.219]
[1754674980146,0.124,4031.1,4030.6,0.124]
[1754674980345,1.7769,4031.0,4030.1,4.095]
[1754674980553,0.124,4030.8,4030.5,2.48107007]
[1754674980756,0.124,4030.8,4030.2,0.124]
[1754674980954,2.48105357,4030.6,4030.2,0.124]
[1754674981273,2.48105357,4030.6,4029.4,0.001]
[1754674981274,1.7769,4030.5,4029.4,0.001]
[1754674981481,0.124,4029.7,4029.4,0.001]
[1754674981664,2.48169748,4029.5,4029.4,0.001]
[1754674981865,0.124,4029.7,4029.4,0.001]
[1754674981866,1.7769,4029.6,4029.4,0.001]
[1754674982177,4.25859748,4029.5,4029.4,0.001]
[1754674982676,1.7769,4029.5,4029.4,0.001]
[1754674982852,4.25859748,4029.5,4029.4,0.001]
[1754674983058,1.7769,4029.5,4029.4,0.001]
[1754674983302,4.25859748,4029.5,4029.4,0.001]
[1754674983798,4.79573478,4029.5,4029.4,0.001]
[1754674984705,2.3140373,4029.5,4029.4,0.001]
[1754674985212,0.124,4029.7,4029.4,0.001]
[1754674985701,0.124,4029.7,4029.4,2.48270598]
[1754674985868,0.124,4029.7,4029.4,0.001]
[1754674986399,1.3136,4029.6,4029.4,0.001]
[1754674986608,4.25858616,4029.6,4029.4,0.001]
[1754674986768,2.21515862,4029.6,4029.4,0.001]
[1754674987300,0.90155862,4029.6,4029.4,0.001]
[1754674987514,0.124,4029.7,4029.4,0.001]
[1754674988566,3.06888165,4029.7,4029.4,0.001]
[1754674988907,2.48169748,4029.5,4029.4,0.001]
[1754674989068,2.48209769,4028.9,4028.2,0.124]
[1754674989401,0.124,4028.8,4028.2,0.124]
[1754674989566,2.60617531,4028.8,4028.2,0.124]
[1754674989763,0.68650926,4028.8,4028.1,0.001]
[1754674990077,2.48249838,4028.2,4028.1,0.001]
[1754674990400,2.60649838,4028.2,4028.1,0.001]
[1754674990587,1.9009,4028.2,4028.1,0.001]
[1754674991009,4.38339838,4028.2,4028.1,0.001]
[1754674991216,4.82173822,4028.2,4028.1,0.001]
[1754674991927,8.91373822,4028.2,4028.1,0.001]
[1754674992927,6.43123984,4028.2,4028.1,0.001]
[1754674993232,4.6793,4028.2,4028.1,0.001]
[1754674993432,0.124,4028.2,4028.1,0.001]
[1754674994926,1.9009,4028.2,4028.1,0.001]
[1754674995531,0.124,4028.2,4028.1,0.001]
[1754674997438,0.5873,4028.2,4028.1,0.001]
[1754674997808,1.9009,4028.2,4028.1,0.001]
[1754674998000,2.09099,4028.2,4028.1,0.001]
[1754674998767,4.57348838,4028.2,4028.1,0.001]
[1754674999074,4.57348838,4028.2,4026.9,0.001]
[1754674999075,2.48373155,4026.2,4026.1,0.001]
[1754674999253,0.55,4027.9,4025.7,0.001]
[1754674999455,0.4633,4026.9,4025.7,0.001]
[1754674999762,2.48348482,4026.6,4025.7,0.001]
[1754674999933,2.48385494,4026.0,4025.7,0.001]
[1754675000325,4.26075494,4026.0,4025.7,0.001]
[1754675000553,4.091,4026.2,4025.7,0.001]
[1754675000755,1.3136,4026.5,4025.7,0.001]
[1754675000935,4.091,4026.3,4025.7,0.001]
[1754675001337,2.48381608,4026.1,4025.7,0.001]
[1754675001518,2.48385494,4026.0,4025.7,0.001]
[1754675001719,2.94715494,4026.0,4025.7,0.001]
[1754675001920,4.26075494,4026.0,4025.7,0.001]
[1754675002254,1.7769,4026.0,4025.7,0.001]
[1754675002456,4.26075494,4026.0,4025.7,0.001]
[1754675002634,2.66172958,4026.0,4025.7,0.001]
[1754675002837,1.34812958,4026.0,4025.7,0.001]
[1754675003356,3.83198452,4026.0,4025.7,0.001]
[1754675003928,5.14558452,4026.0,4025.7,0.001]
[1754675004130,5.14648452,4026.0,4025.7,0.001]
[1754675004328,8.14648452,4026.0,4025.7,0.001]
[1754675005724,7.46068452,4026.0,4025.7,0.001]
[1754675006190,10.46068452,4026.0,4025.7,0.001]
[1754675006692,7.97582958,4026.0,4025.7,0.001]
[1754675006854,10.92388452,4026.0,4025.7,0.001]
[1754675007058,12.69128452,4026.0,4025.7,0.001]
[1754675007886,10.45968452,4026.0,4025.7,0.001]
[1754675008056,7.97582958,4026.0,4025.7,0.001]
[1754675008259,4.091,4026.0,4025.7,0.001]
[1754675008993,6.69885494,4026.0,4025.7,0.001]
[1754675009369,3.0,4026.2,4025.7,0.001]
[1754675009370,2.48373429,4026.2,4025.7,0.001]
[1754675009585,4.091,4026.0,4025.7,0.001]
[1754675010274,6.57485494,4026.0,4025.7,0.001]
[1754675010675,8.00696841,4026.0,4025.7,0.001]
[1754675011079,12.77436841,4026.0,4025.7,0.001]
[1754675011603,8.13336841,4026.0,4025.7,0.001]
[1754675011811,12.22436841,4026.0,4025.7,0.001]
[1754675012171,12.77436841,4026.0,4025.7,0.001]
[1754675012498,8.13336841,4026.0,4025.7,0.001]
[1754675012690,12.34836841,4026.0,4025.7,0.001]
[1754675012890,10.66676841,4026.0,4025.7,0.001]
[1754675013678,12.89836841,4026.0,4025.7,0.001]
[1754675014706,8.80736841,4026.0,4025.7,0.001]
[1754675015005,12.89836841,4026.0,4025.7,0.001]
[1754675015599,6.57576841,4026.0,4025.7,0.001]
[1754675015798,9.69885494,4026.0,4025.7,0.001]
[1754675016003,4.214,4026.0,4025.7,0.001]
[1754675016208,2.48441032,4025.1,4025.0,10.0]
[1754675016391,9.57441032,4025.1,4025.0,10.0]
[1754675017605,11.80601032,4025.1,4025.0,10.0]
[1754675017904,13.2350446,4025.1,4025.0,10.0]
[1754675018473,11.5534446,4025.1,4025.0,10.0]
[1754675018710,7.4634446,4025.1,4025.0,10.0]
[1754675018895,13.2350446,4025.1,4025.0,10.0]
[1754675019218,9.67720529,4025.1,4025.0,10.0]
[1754675019397,9.67720529,4025.1,4024.1,0.001]
[1754675019398,2.48465724,4024.7,4024.6,1e-08]
[1754675019570,10.12465724,4024.7,4024.6,1e-08]
[1754675019770,10.12465724,4024.7,4022.5,0.001]
[1754675019771,3.03570718,4023.0,4022.5,0.001]
[1754675019976,10.12570718,4023.0,4022.5,0.001]
[1754675020315,14.13369972,4023.0,4022.5,0.001]
[1754675020673,12.98407875,4023.0,4022.5,0.001]
[1754675020886,7.10096665,4023.0,4022.5,0.001]
[1754675021089,8.15525947,4023.0,4022.5,0.001]
[1754675021291,12.87256665,4023.0,4022.5,0.001]
[1754675022739,12.87256665,4023.0,4022.9,1e-08]
[1754675022920,13.40376763,4023.0,4022.9,1e-08]
[1754675023092,11.63306648,4023.0,4022.9,1e-08]
[1754675023291,2.48595435,4022.6,4022.5,0.001]
[1754675023523,10.65615533,4022.6,4022.5,0.001]
[1754675023727,13.37003446,4022.6,4022.5,0.001]
[1754675023927,13.37003446,4022.6,4022.5,1e-08]
[1754675024129,15.05203191,4022.6,4022.5,1e-08]
[1754675024331,15.05203191,4022.6,4022.4,0.001]
[1754675024332,6.03601615,4022.5,4022.4,1e-08]
[1754675024547,0.55,4021.0,4019.6,0.4572]
[1754675024833,0.4642,4021.4,4019.7,1.2313]
[1754675025005,1.01290597,4020.9,4019.8,0.4572]
[1754675025203,0.55,4020.6,4019.8,0.4572]
[1754675025529,1.01290597,4020.9,4019.9,1.2313]
[1754675025692,3.0,4020.7,4019.3,1.2313]
[1754675025887,0.55,4020.4,4019.4,0.4572]
[1754675026101,2.48752186,4020.1,4019.4,0.4572]
[1754675026328,2.48752186,4020.1,4018.1,4.09]
[1754675026329,0.124,4019.6,4019.1,0.1248]
[1754675026526,4.09,4020.0,4018.6,0.4572]
[1754675026527,0.1248,4019.2,4018.7,0.1248]
[1754675026728,4.09,4019.5,4018.7,0.1248]
[1754675026729,0.66316299,4021.1,4018.8,1.6885]
[1754675026890,0.124,4019.5,4019.0,2.61297328]
[1754675027091,0.124,4019.5,4019.1,1.6885]
[1754675027294,4.091,4019.7,4019.1,0.4572]
[1754675027551,0.1248,4019.2,4019.1,0.4572]
[1754675028455,4.091,4019.6,4019.1,1.6885]
[1754675028606,0.124,4019.5,4019.3,2.48798962]
[1754675028792,0.124,4019.5,4019.4,4.17643352]
[1754675028993,2.48730182,4020.5,4019.6,2.48775117]
[1754675028994,0.124,4019.8,4019.6,2.48775117]
[1754675029203,0.124,4019.8,4019.1,0.4572]
[1754675029425,0.124,4019.8,4019.1,2.94530956]
[1754675029631,0.124,4019.8,4019.1,0.4572]
[1754675030033,0.4642,4020.8,4019.2,1.2313]
[1754675030216,0.124,4020.3,4019.7,0.124]
[1754675030417,0.915567,4021.3,4019.8,1.2313]
[1754675030418,3.0,4020.9,4019.8,1.2313]
[1754675030605,0.124,4020.8,4020.4,2.48730016]
[1754675030807,0.124,4020.8,4020.5,1.6885]
[1754675030997,4.091,4021.1,4020.5,1.6885]
[1754675031195,2.61096063,4021.0,4020.5,1.8125]
[1754675031400,5.61095595,4021.0,4020.5,0.124]
[1754675031608,3.124,4021.0,4020.5,0.124]
[1754675031829,3.124,4021.0,4020.6,1.6885]
[1754675032037,0.124,4021.0,4020.6,4.17569096]
[1754675032241,0.124,4021.3,4020.6,4.85438728]
[1754675032425,0.124,4021.6,4020.6,4.85438728]
[1754675032625,0.747152,4022.6,4020.6,4.97838728]
[1754675032906,5.972,4023.5,4020.7,0.55]
[1754675032907,2.78577402,4022.9,4020.7,0.55]
[1754675033133,2.78577402,4022.9,4020.6,5.39206822]
[1754675033134,2.48613977,4022.3,4020.8,1.6885]
[1754675033404,4.091,4022.6,4020.9,0.4572]
[1754675033609,0.124,4021.8,4021.3,0.124]
[1754675034504,0.124,4021.8,4021.4,1.1862]
[1754675034761,0.124,4021.8,4021.5,2.48663434]
[1754675034919,0.124,4022.1,4021.5,0.124]
[1754675035117,2.61027719,4022.1,4021.5,0.124]
[1754675035323,0.72979999,4022.9,4021.6,1.6475]
[1754675035324,0.29999999,4022.9,4021.6,1.6475]
[1754675035642,0.29999999,4022.9,4021.7,1.6475]
[1754675035826,0.29999999,4022.9,4022.0,2.48629094]
[1754675036034,0.29999999,4022.9,4021.7,1.6475]
[1754675036453,0.29999999,4022.9,4022.4,2.48605418]
[1754675036748,0.29999999,4022.9,4022.4,2.94735418]
[1754675036932,0.29999999,4022.9,4022.4,0.4613]
[1754675037113,0.29999999,4022.9,4022.4,2.94737165]
[1754675037516,0.29999999,4022.9,4022.4,0.4613]
[1754675037822,0.29999999,4022.9,4022.2,2.48619595]
[1754675038018,0.29999999,4022.9,4022.2,2.89956555]